bitfinex/quotes_SOLUSD_20250305
["timestamp","ask_amount","ask_price","bid_price","bid_amount"]
[1741206022295,18.64964886,145.31,145.25,0.03]
[1741206022663,82.6001,145.3,145.25,0.03]
[1741206023591,18.64964886,145.29,145.25,0.03]
[1741206023995,82.6001,145.3,145.25,0.03]
[1741206026396,1.6001,145.3,145.25,0.03]
[1741206026878,99.79181043,145.29,145.25,0.03]
[1741206027066,99.79181043,145.29,145.22,0.03]
[1741206027575,18.79181043,145.27,145.22,0.03]
[1741206027783,18.79181043,145.25,145.22,0.03]
[1741206028100,25.43711043,145.25,145.22,0.03]
[1741206028898,6.6453,145.25,145.22,0.03]
[1741206029071,1.5954,145.26,145.22,0.03]
[1741206030193,1.5954,145.26,145.25,0.03]
[1741206031295,1.5954,145.26,145.22,0.03]
[1741206031296,0.14216157,145.25,145.22,0.03]
[1741206032080,1.5954,145.26,145.22,0.03]
[1741206032395,0.14216157,145.25,145.22,0.03]
[1741206035992,1.5954,145.26,145.22,0.03]
[1741206037195,1.5954,145.26,145.22,79.1728]
[1741206040496,1.506,145.3,145.22,215.59910981]
[1741206041077,18.79181043,145.29,145.22,215.59910981]
[1741206041705,1.506,145.3,145.22,215.59910981]
[1741206042485,1.506,145.3,145.22,222.48500981]
[1741206042685,0.033,145.26,145.22,222.48500981]
[1741206043206,0.033,145.26,145.22,222.48510981]
[1741206043508,0.033,145.26,145.22,527.59910981]
[1741206043893,0.033,145.26,145.22,534.48500981]
[1741206044207,0.033,145.26,145.22,527.59910981]
[1741206045587,0.033,145.26,145.22,534.48510981]
[1741206045792,0.033,145.26,145.22,527.59910981]
[1741206046725,0.033,145.26,145.22,215.59910981]
[1741206048199,0.033,145.26,145.22,222.48510981]
[1741206048399,0.033,145.26,145.22,215.59910981]
[1741206049722,0.033,145.26,145.22,527.59910981]
[1741206050397,0.033,145.26,145.22,215.59910981]
[1741206050718,0.033,145.26,145.22,79.1728]
[1741206051095,0.033,145.26,145.22,0.03]
[1741206051295,18.79181043,145.24,145.22,0.03]
[1741206055325,18.79181043,145.24,145.22,0.0001]
[1741206055526,18.79181043,145.24,145.21,0.0001]
[1741206057119,82.6214,145.25,145.21,0.0001]
[1741206057502,1.6214,145.25,145.21,0.0001]
[1741206058516,18.68264886,145.26,145.21,0.0001]
[1741206058517,0.033,145.26,145.21,0.0001]
[1741206060139,0.033,145.26,145.21,79.1429]
[1741206060321,0.033,145.26,145.22,25.21028713]
[1741206060712,0.033,145.26,145.22,6.5262]
[1741206062631,0.033,145.26,145.21,0.0001]
[1741206063411,0.033,145.26,145.21,79.1429]
[1741206064030,0.033,145.26,145.21,86.0294]
[1741206065013,0.033,145.26,145.21,79.1429]
[1741206065218,0.033,145.26,145.21,86.71928455]
[1741206065415,0.033,145.26,145.21,79.1429]
[1741206066133,0.033,145.26,145.21,97.82698713]
[1741206066440,0.033,145.26,145.21,79.1429]
[1741206067121,0.033,145.26,145.21,104.71338713]
[1741206067329,0.033,145.26,145.21,79.1429]
[1741206068922,0.033,145.26,145.21,104.71348713]
[1741206069142,0.033,145.26,145.21,79.1429]
[1741206070548,18.64964886,145.25,145.21,79.1429]
[1741206071734,18.64964886,145.25,145.21,0.0001]
[1741206074548,0.033,145.26,145.21,215.56920981]
[1741206074853,0.033,145.26,145.22,19.37392224]
[1741206075453,0.033,145.26,145.22,26.25982224]
[1741206075846,0.033,145.26,145.22,7.57573511]
[1741206076150,0.033,145.26,145.23,18.68408713]
[1741206076331,0.033,145.26,145.24,19.37343708]
[1741206077251,0.033,145.26,145.24,0.68934995]
[1741206077440,0.033,145.26,145.23,25.56958713]
[1741206077755,0.033,145.26,145.23,338.25906114]
[1741206077956,0.033,145.26,145.23,337.56958713]
[1741206078742,0.033,145.26,145.23,312.0]
[1741206079256,0.033,145.26,145.22,215.56910981]
[1741206079758,0.033,145.26,145.22,79.1428]
[1741206080255,0.033,145.26,145.22,86.0286]
[1741206081749,0.033,145.26,145.24,18.68408713]
[1741206082288,0.033,145.26,145.23,18.68408713]
[1741206082586,0.033,145.26,145.22,416.71268713]
[1741206083268,0.033,145.26,145.23,18.68408713]
[1741206083467,0.033,145.26,145.23,26.25914167]
[1741206083794,0.033,145.26,145.22,416.71278713]
[1741206084364,0.033,145.26,145.23,19.37358924]
[1741206084779,0.033,145.26,145.23,223.14381192]
[1741206084983,0.033,145.26,145.25,20.21288713]
[1741206085180,0.033,145.26,145.25,236.47074458]
[1741206085376,0.033,145.26,145.25,235.78199694]
[1741206086283,0.033,145.26,145.25,243.23524322]
[1741206086470,0.033,145.26,145.25,249.28394322]
[1741206086667,0.033,145.26,145.25,269.93359208]
[1741206087270,0.033,145.26,145.25,267.79143051]
[1741206087984,0.033,145.26,145.25,579.79143051]
[1741206088773,0.033,145.26,145.25,579.93359208]
[1741206088974,0.033,145.26,145.25,581.93359208]
[1741206090195,0.033,145.26,145.25,579.93359208]
[1741206090884,0.033,145.26,145.25,579.79143051]
[1741206091473,0.033,145.26,145.25,554.11502008]
[1741206091675,0.033,145.26,145.25,560.39502008]
[1741206091873,0.033,145.26,145.25,560.11069694]
[1741206092389,0.033,145.26,145.25,227.89780981]
[1741206092570,0.033,145.26,145.25,221.84910981]
[1741206092769,0.033,145.26,145.25,85.4228]
[1741206094598,0.033,145.26,145.25,104.39121027]
[1741206094793,0.033,145.26,145.25,259.60933051]
[1741206095010,0.033,145.26,145.25,265.98079208]
[1741206095376,0.033,145.26,145.25,577.98079208]
[1741206095577,0.033,145.26,145.25,584.86539208]
[1741206097786,1.6459,145.37,145.26,19.21829514]
[1741206097986,1.6459,145.37,145.31,18.68408713]
[1741206098184,1.6459,145.37,145.31,234.25319694]
[1741206099402,1.6459,145.37,145.31,215.56910981]
[1741206101884,18.79181043,145.36,145.31,79.1428]
[1741206102396,81.0,145.35,145.28,79.1428]
[1741206103298,0.14216157,145.32,145.28,79.1428]
[1741206103603,99.79181043,145.32,145.25,79.1428]
[1741206103784,81.0,145.31,145.21,221.58000981]
[1741206104189,1.6243,145.29,145.21,79.1429]
[1741206105194,99.64964886,145.28,145.21,79.1429]
[1741206107006,81.0,145.28,145.21,79.1429]
[1741206108315,1.76646157,145.29,145.21,241.83001128]
[1741206108316,1.6243,145.29,145.21,241.83001128]
[1741206108604,1.6243,145.29,145.21,241.13969694]
[1741206108980,1.6243,145.29,145.22,18.68408713]
[1741206109199,1.6243,145.29,145.21,215.56920981]
[1741206109406,0.14216157,145.28,145.21,215.56920981]
[1741206110286,0.14216157,145.28,145.21,527.56920981]
[1741206110603,18.79181043,145.28,145.21,527.56920981]
[1741206110783,18.79181043,145.28,145.21,79.1429]
[1741206112506,1.6243,145.29,145.21,79.1429]
[1741206112692,1.6243,145.29,145.21,97.82698713]
[1741206113186,1.6243,145.29,145.21,79.1429]
[1741206113814,1.6243,145.29,145.22,0.69010399]
[1741206113977,1.6243,145.29,145.21,391.1429]
[1741206114181,1.6243,145.29,145.21,409.82698713]
[1741206114821,1.6243,145.29,145.21,416.71338713]
[1741206114982,1.6243,145.29,145.21,97.82698713]
[1741206115390,1.6243,145.29,145.22,18.68408713]
[1741206115891,1.6243,145.29,145.23,25.56968713]
[1741206116208,1.6243,145.29,145.22,215.56910981]
[1741206117884,1.6243,145.29,145.22,527.56910981]
[1741206118990,1.6243,145.29,145.22,546.25319694]
[1741206119801,1.6243,145.29,145.23,19.37390353]
[1741206120220,1.6243,145.29,145.24,18.68408713]
[1741206120512,6.6367,145.33,145.27,18.68408713]
[1741206120513,1.5312,145.33,145.27,18.68408713]
[1741206120685,1.5312,145.33,145.27,234.25319694]
[1741206121087,0.14216157,145.32,145.27,215.56910981]
[1741206121696,0.14216157,145.32,145.24,104.10688713]
[1741206121990,0.14216157,145.32,145.24,241.22240459]
[1741206122184,18.79181043,145.32,145.24,221.84910981]
[1741206122901,6.1646,145.31,145.24,85.4228]
[1741206123432,1.5312,145.33,145.26,18.68408713]
[1741206123610,1.5312,145.33,145.25,0.68917925]
[1741206123805,1.5312,145.33,145.26,18.68408713]
[1741206124003,0.14216157,145.32,145.24,221.84910981]
[1741206126317,0.14216157,145.32,145.24,533.84910981]
[1741206126893,0.14216157,145.32,145.24,552.53319694]
[1741206127293,0.14216157,145.32,145.24,533.84910981]
[1741206130219,99.79181043,145.32,145.24,85.4228]
[1741206130517,9.84487317,145.31,145.24,6.28]
[1741206130707,18.64964886,145.3,145.22,215.56910981]
[1741206131405,18.64964886,145.28,145.21,0.0001]
[1741206131717,1.5212,145.27,145.21,0.0001]
[1741206131919,82.5212,145.27,145.21,0.0001]
[1741206133618,1.5212,145.27,145.22,18.68408713]
[1741206133825,1.5212,145.27,145.21,234.94329314]
[1741206134000,1.5212,145.27,145.21,234.25329694]
[1741206134521,1.5212,145.27,145.22,26.25978811]
[1741206135000,1.5212,145.27,145.22,19.37398811]
[1741206135203,1.5212,145.27,145.22,26.25998811]
[1741206135396,1.5212,145.27,145.23,18.68408713]
[1741206135918,12.27569067,145.3,145.24,18.68408713]
[1741206136102,1.5289,145.3,145.24,234.25319694]
[1741206136304,1.5289,145.3,145.24,215.56910981]
[1741206137513,0.14216157,145.29,145.24,215.56910981]
[1741206137713,18.79181043,145.29,145.24,215.56910981]
[1741206137917,18.79181043,145.29,145.21,79.1429]
[1741206138127,0.14216157,145.29,145.21,98.51722048]
[1741206138455,18.79181043,145.29,145.22,0.03]
[1741206138596,18.82481043,145.29,145.22,79.1728]
[1741206139304,0.17516157,145.29,145.22,79.1728]
[1741206139506,0.033,145.29,145.23,19.37371105]
[1741206139708,0.033,145.29,145.23,234.94282086]
[1741206139910,0.033,145.29,145.24,0.68929633]
[1741206140119,0.033,145.29,145.24,234.94249327]
[1741206140316,0.033,145.29,145.24,234.25319694]
[1741206140525,0.033,145.29,145.27,6.8837]
[1741206140805,0.033,145.29,145.28,18.68408713]
[1741206141221,0.033,145.29,145.27,241.13689694]
[1741206141427,0.033,145.29,145.28,18.96841027]
[1741206141812,0.033,145.29,145.28,234.53752008]
[1741206142133,0.033,145.29,145.28,234.25319694]
[1741206142439,0.033,145.29,145.28,215.56910981]
[1741206142610,0.033,145.29,145.28,79.1428]
[1741206142804,0.033,145.29,145.26,79.1428]
[1741206143319,0.033,145.29,145.24,85.4228]
[1741206143532,1.6336,145.28,145.24,79.1428]
[1741206146526,0.033,145.29,145.24,79.83243163]
[1741206146817,0.033,145.29,145.24,79.1428]
[1741206148640,0.033,145.29,145.22,215.59910981]
[1741206152518,0.033,145.29,145.22,79.1728]
[1741206152722,18.64964886,145.27,145.22,79.1728]
[1741206154148,18.64964886,145.27,145.22,0.03]
[1741206154720,99.64964886,145.27,145.22,0.03]
[1741206157244,99.64964886,145.27,145.21,0.0001]
[1741206157245,1.65456157,145.24,145.21,0.0001]
[1741206157427,0.14216157,145.22,145.21,0.0001]
[1741206157624,0.14216157,145.22,145.2,0.03]
[1741206158736,1.65456157,145.24,145.2,0.03]
[1741206160427,1.5124,145.24,145.2,79.1728]
[1741206161247,1.5124,145.24,145.2,97.85688713]
[1741206161418,1.5368,145.28,145.2,241.16999694]
[1741206162156,1.5368,145.28,145.2,222.48590981]
[1741206162362,1.5368,145.28,145.2,241.16999694]
[1741206162954,1.5368,145.28,145.21,25.57048713]
[1741206163253,1.5368,145.28,145.2,241.16999694]
[1741206163477,1.5368,145.28,145.21,18.68408713]
[1741206163629,1.5368,145.28,145.22,18.68408713]
[1741206164024,1.5368,145.28,145.21,0.69009273]
[1741206164249,1.5368,145.28,145.21,312.69009273]
[1741206164431,1.5368,145.28,145.21,312.0]
[1741206166047,18.64964886,145.27,145.21,312.0]
[1741206166355,18.64964886,145.27,145.2,215.59910981]
[1741206166574,18.64964886,145.27,145.2,79.1728]
[1741206168247,1.5368,145.28,145.2,79.1728]
[1741206168436,1.5368,145.28,145.2,97.85688713]
[1741206168638,1.5368,145.28,145.2,234.28319694]
[1741206168963,1.5368,145.28,145.21,0.69016162]
[1741206169264,1.5368,145.28,145.2,527.59910981]
[1741206169450,18.64964886,145.27,145.2,215.59910981]
[1741206169652,0.14216157,145.26,145.2,215.59910981]
[1741206169969,0.14216157,145.26,145.2,79.1728]
[1741206170752,8.0373,145.28,145.2,79.1728]
[1741206170959,0.14216157,145.27,145.2,86.0597]
[1741206171140,0.14216157,145.27,145.2,79.1728]
[1741206171641,0.14216157,145.27,145.2,86.0597]
[1741206172558,0.14216157,145.27,145.2,398.0597]
[1741206172760,1.5368,145.28,145.21,0.69012368]
[1741206174066,18.64964886,145.27,145.2,215.59910981]
[1741206174768,18.64964886,145.27,145.2,79.1728]
[1741206174968,1.5368,145.28,145.2,79.1728]
[1741206175469,18.64964886,145.27,145.2,79.1728]
[1741206175667,6.2759,145.26,145.2,79.1728]
[1741206176050,87.2759,145.26,145.2,0.03]
[1741206176673,81.0,145.26,145.2,6.9169]
[1741206176874,81.0,145.26,145.2,0.03]
[1741206177174,1.5368,145.28,145.2,527.59910981]
[1741206177662,0.14216157,145.27,145.2,527.59910981]
[1741206178045,1.5368,145.28,145.2,527.59910981]
[1741206178540,1.5368,145.28,145.2,534.48610981]
[1741206178744,1.5368,145.28,145.2,527.59910981]
[1741206179647,0.14216157,145.27,145.2,527.59910981]
[1741206180067,0.14216157,145.27,145.2,215.59910981]
[1741206180669,1.5368,145.28,145.2,222.48600981]
[1741206181052,0.14216157,145.27,145.2,215.59910981]
[1741206181482,18.79181043,145.27,145.2,215.59910981]
[1741206182170,0.14216157,145.27,145.2,79.1728]
[1741206182558,1.5368,145.28,145.21,0.69016057]
[1741206182756,0.033,145.29,145.21,0.69016057]
[1741206182964,0.033,145.29,145.21,312.0]
[1741206183245,0.033,145.29,145.2,215.59910981]
[1741206183664,0.033,145.29,145.2,222.48610981]
[1741206184071,0.033,145.29,145.21,0.68990298]
[1741206184374,0.033,145.29,145.2,252.36252231]
[1741206184567,0.033,145.29,145.2,215.59910981]
[1741206185153,1.84040926,145.29,145.2,215.59910981]
[1741206186168,18.79181043,145.28,145.2,79.1728]
[1741206186477,0.14216157,145.26,145.2,79.1728]
[1741206187377,18.79181043,145.26,145.2,79.1728]
[1741206187777,1.5336,145.27,145.2,215.59910981]
[1741206187958,0.033,145.29,145.2,245.47552231]
[1741206188159,0.033,145.28,145.2,252.36242231]
[1741206189287,0.033,145.28,145.21,0.6897993]
[1741206190289,0.033,145.28,145.2,527.59910981]
[1741206191181,0.033,145.28,145.2,79.1728]
[1741206192375,0.033,145.28,145.2,79.86314585]
[1741206192866,0.033,145.28,145.2,216.28945566]
[1741206193056,0.033,145.28,145.2,215.59910981]
[1741206194953,1.5914,145.27,145.2,79.1728]
[1741206195165,18.64964886,145.26,145.2,79.1728]
[1741206196164,24.66894886,145.26,145.2,79.1728]
[1741206196372,18.64964886,145.24,145.2,0.0001]
[1741206196565,99.64964886,145.24,145.2,0.0001]
[1741206196964,18.64964886,145.22,145.2,0.0001]
[1741206198464,0.14216157,145.21,145.2,0.0001]
[1741206198982,1.6425,145.23,145.2,0.0001]
[1741206199185,81.14216157,145.24,145.2,0.0001]
[1741206199365,0.14216157,145.24,145.2,0.0001]
[1741206199986,104.15948134,145.27,145.2,0.0001]
[1741206200168,104.15948134,145.27,145.2,79.1429]
[1741206200373,122.8091302,145.27,145.2,79.1429]
[1741206200584,0.14216157,145.25,145.2,79.1429]
[1741206201263,10.74679067,145.26,145.2,215.56920981]
[1741206201463,10.74679067,145.26,145.2,234.24746844]
[1741206202188,10.74679067,145.26,145.2,527.56920981]
[1741206202594,10.74679067,145.26,145.21,18.67825863]
[1741206202765,10.74679067,145.26,145.23,18.67825863]
[1741206203077,0.033,145.27,145.23,216.25849698]
[1741206203273,0.033,145.27,145.23,215.56910981]
[1741206203678,0.033,145.27,145.23,234.24736844]
[1741206204487,0.033,145.27,145.24,19.36757917]
[1741206204695,0.033,145.27,145.25,18.67825863]
[1741206204984,0.033,145.27,145.24,6.91712054]
[1741206205165,0.033,145.27,145.24,25.59537917]
[1741206205579,0.033,145.27,145.24,6.91712054]
[1741206205785,0.033,145.27,145.24,25.59537917]
[1741206206386,0.033,145.27,145.24,6.91712054]
[1741206206888,0.033,145.27,145.24,318.91712054]
[1741206207090,0.033,145.27,145.24,318.2278]
[1741206208788,0.033,145.27,145.24,79.1428]
[1741206209681,0.033,145.27,145.24,79.0688]
[1741206209889,18.79181043,145.25,145.21,79.0688]
[1741206210086,18.79181043,145.25,145.2,0.0001]
[1741206212892,29.5386011,145.25,145.2,0.0001]
[1741206216387,10.74679067,145.25,145.2,0.0001]
[1741206216588,10.74679067,145.25,145.2,29.89998688]
[1741206216802,10.74679067,145.25,145.21,29.89988688]
[1741206217007,10.74679067,145.25,145.21,30.58994213]
[1741206218075,10.74679067,145.25,145.22,29.89988688]
[1741206218276,10.74679067,145.25,145.23,29.89988688]
[1741206218514,10.74679067,145.25,145.24,30.58941226]
[1741206218679,10.74679067,145.25,145.24,37.47451226]
[1741206218877,0.033,145.27,145.24,30.58941226]
[1741206219083,0.033,145.27,145.25,29.89988688]
[1741206219501,0.033,145.27,145.25,341.89988688]
[1741206219803,0.033,145.27,145.26,29.89988688]
[1741206220007,0.033,145.27,145.26,30.58874754]
[1741206221022,0.033,145.27,145.25,341.89988688]
[1741206221499,0.033,145.27,145.25,312.0]
[1741206221880,0.033,145.27,145.23,36.31988688]
[1741206222114,0.033,145.27,145.23,6.02]
[1741206222287,0.033,145.27,145.23,6.7095109]
[1741206223196,0.033,145.27,145.23,6.02]
[1741206224579,0.033,145.27,145.23,6.70952191]
[1741206225805,0.033,145.27,145.23,36.60940879]
[1741206226004,0.033,145.27,145.23,6.70952191]
[1741206226197,0.033,145.27,145.23,6.02]
[1741206227615,0.033,145.27,145.24,0.68967002]
[1741206227782,0.033,145.27,145.24,30.5895569]
[1741206227986,0.033,145.27,145.24,0.68967002]
[1741206228293,0.033,145.27,145.24,312.68967002]
[1741206228602,0.033,145.27,145.24,312.0]
[1741206230394,0.033,145.27,145.25,0.68908985]
[1741206230714,0.033,145.27,145.25,234.84396911]
[1741206231015,0.033,145.27,145.25,215.49510981]
[1741206234105,0.033,145.27,145.26,19.34892097]
[1741206234917,0.033,145.27,145.26,241.49311549]
[1741206235117,10.74679067,145.33,145.27,120.67769514]
[1741206235315,10.77979067,145.34,145.32,18.65976945]
[1741206235624,10.77979067,145.34,145.33,50.74876459]
[1741206235805,7.41686687,145.34,145.33,287.66042595]
[1741206235999,7.41686687,145.34,145.33,273.1246744]
[1741206236899,7.41686687,145.34,145.33,266.2438744]
[1741206237326,7.41686687,145.34,145.33,247.44194338]
[1741206237622,7.41686687,145.34,145.33,247.02557926]
[1741206238306,7.41686687,145.34,145.33,272.98251283]
[1741206238501,0.033,145.37,145.33,284.12849154]
[1741206238703,0.033,145.37,145.36,29.80574816]
[1741206239025,0.033,145.37,145.36,245.98676268]
[1741206239318,0.033,145.37,145.36,245.30085797]
[1741206240024,0.033,145.37,145.36,264.37699154]
[1741206240219,0.033,145.37,145.36,271.39855311]
[1741206240523,0.033,145.37,145.36,245.30085797]
[1741206242327,0.033,145.37,145.36,576.37699154]
[1741206242524,0.033,145.37,145.36,583.25639154]
[1741206242723,0.033,145.37,145.36,527.49510981]
[1741206242911,0.033,145.37,145.36,215.49510981]
[1741206243099,0.033,145.37,145.36,245.30085797]
[1741206243433,0.033,145.37,145.36,264.37699154]
[1741206243926,0.033,145.37,145.36,245.30085797]
[1741206245426,0.033,145.37,145.36,264.37699154]
[1741206245818,0.033,145.37,145.36,576.37699154]
[1741206246015,0.033,145.37,145.36,583.25639154]
[1741206246227,0.033,145.37,145.36,613.20430127]
[1741206246428,0.033,145.37,145.36,301.20430127]
[1741206247143,0.033,145.37,145.36,271.39855311]
[1741206248813,0.033,145.37,145.36,271.25639154]
[1741206249328,0.033,145.37,145.36,583.25639154]
[1741206249529,0.033,145.37,145.36,576.37699154]
[1741206249723,0.033,145.37,145.36,583.25639154]
[1741206250022,0.033,145.37,145.36,576.37699154]
[1741206250238,0.033,145.37,145.36,583.25639154]
[1741206251331,0.033,145.37,145.36,271.25639154]
[1741206253630,0.033,145.37,145.36,271.39855311]
[1741206254135,0.033,145.4,145.38,20.87679514]
[1741206254432,0.033,145.4,145.39,30.49013609]
[1741206255129,0.033,145.4,145.39,37.36813609]
[1741206257637,0.033,145.4,145.39,349.36813609]
[1741206257832,0.033,145.4,145.39,348.68374816]
[1741206258009,0.033,145.4,145.39,564.14585797]
[1741206258645,0.033,145.4,145.39,552.952675]
[1741206259544,0.033,145.4,145.39,572.17097014]
[1741206259833,0.033,145.4,145.39,578.39547014]
[1741206260538,0.033,145.47,145.43,20.0]
[1741206260737,0.033,145.47,145.46,18.61256519]
[1741206260915,0.033,145.47,145.46,234.72491677]
[1741206261117,0.033,145.47,145.46,253.25997014]
[1741206261715,0.033,145.47,145.46,260.13467014]
[1741206263616,0.033,145.47,145.46,572.13467014]
[1741206263820,0.033,145.47,145.46,215.42910981]
[1741206264018,0.033,145.47,145.46,79.0028]
[1741206267849,0.033,145.47,145.46,215.42910981]
[1741206268339,0.033,145.47,145.46,234.041675]
[1741206269018,0.033,145.47,145.46,240.916375]
[1741206269218,0.033,145.47,145.46,234.041675]
[1741206269540,0.033,145.47,145.46,240.916375]
[1741206269745,0.033,145.47,145.46,260.13467014]
[1741206269923,0.033,145.47,145.46,266.41467014]
[1741206270245,0.033,145.47,145.46,240.321675]
[1741206270739,0.033,145.47,145.46,552.321675]
[1741206271542,0.033,145.47,145.46,578.41467014]
[1741206272040,0.033,145.51,145.47,78.9698]
[1741206272247,0.033,145.51,145.5,25.48536519]
[1741206272414,0.033,145.51,145.5,241.56364912]
[1741206272614,0.033,145.51,145.5,260.09977014]
[1741206275247,0.033,145.51,145.5,565.22697014]
[1741206275947,0.033,145.51,145.5,215.39610981]
[1741206283646,0.033,145.51,145.5,78.9022]
[1741206284354,0.033,145.51,145.42,215.32850981]
[1741206284742,1.5338,145.5,145.42,215.32850981]
[1741206285158,1.5338,145.5,145.43,0.68472975]
[1741206286761,1.5338,145.5,145.43,312.68472975]
[1741206286930,1.5338,145.5,145.43,312.0]
[1741206287135,1.5338,145.5,145.44,0.68427025]
[1741206287545,1.5338,145.5,145.44,216.01278006]
[1741206287747,1.5668,145.5,145.44,215.32850981]
[1741206288239,1.5668,145.5,145.45,0.68416794]
[1741206288442,1.5668,145.5,145.45,216.01267775]
[1741206288641,1.5668,145.5,145.45,215.32850981]
[1741206290348,1.5668,145.5,145.46,0.68365071]
[1741206291468,1.5668,145.5,145.45,215.32850981]
[1741206291961,1.5668,145.5,145.46,0.68379309]
[1741206292160,1.5668,145.5,145.46,19.29635828]
[1741206292468,1.5668,145.5,145.46,0.68379309]
[1741206292959,0.033,145.5,145.46,0.68379309]
[1741206293165,0.033,145.5,145.46,7.55829309]
[1741206293864,0.033,145.5,145.46,0.68379309]
[1741206294470,0.033,145.5,145.46,216.0123029]
[1741206294767,0.033,145.5,145.46,215.32850981]
[1741206294969,0.033,145.5,145.47,0.68343268]
[1741206296146,0.033,145.5,145.46,215.32850981]
[1741206297668,0.033,145.5,145.47,0.68374701]
[1741206297868,0.033,145.5,145.46,215.32850981]
[1741206298073,1.6648,145.49,145.46,78.9022]
[1741206299249,1.6648,145.49,145.43,215.32850981]
[1741206301182,1.6648,145.49,145.43,222.20460981]
[1741206301467,1.6648,145.49,145.44,0.6843343]
[1741206301773,1.6648,145.49,145.44,216.01284411]
[1741206301954,5.6992,145.54,145.44,215.32850981]
[1741206302149,18.79181043,145.53,145.44,215.32850981]
[1741206302546,18.64964886,145.53,145.44,215.32850981]
[1741206302749,18.64964886,145.53,145.45,0.68408068]
[1741206303175,18.64964886,145.53,145.44,215.32850981]
[1741206304478,0.14216157,145.52,145.44,215.32850981]
[1741206305280,1.5955,145.51,145.44,215.32850981]
[1741206305462,1.5955,145.51,145.44,222.20400981]
[1741206305656,1.5955,145.51,145.44,215.32850981]
[1741206306179,1.5955,145.51,145.45,0.6839883]
[1741206306355,1.5955,145.51,145.45,215.32850981]
[1741206307576,1.5955,145.51,145.46,0.68376431]
[1741206307759,1.5955,145.51,145.46,216.01227412]
[1741206307961,1.5914,145.54,145.46,233.941075]
[1741206308166,1.5914,145.54,145.47,18.61256519]
[1741206308363,0.033,145.56,145.5,18.61256519]
[1741206308675,0.033,145.56,145.51,19.29481381]
[1741206308872,0.033,145.56,145.52,37.68869876]
[1741206309053,0.033,145.56,145.53,19.29399484]
[1741206309249,0.033,145.56,145.54,37.68869876]
[1741206309453,0.033,145.56,145.54,19.07613357]
[1741206309871,0.033,145.56,145.54,44.55959876]
[1741206310563,0.033,145.56,145.54,260.71126957]
[1741206310777,0.033,145.56,145.54,260.03027014]
[1741206310995,0.033,145.56,145.54,253.01720857]
[1741206311151,0.033,145.56,145.54,234.40464338]
[1741206311670,0.033,145.56,145.54,253.01720857]
[1741206311873,0.033,145.56,145.54,565.01720857]
[1741206312478,0.033,145.56,145.54,546.40464338]
[1741206312689,0.033,145.56,145.54,565.01720857]
[1741206312863,0.033,145.56,145.54,565.15937014]
[1741206313064,0.033,145.56,145.54,572.03027014]
[1741206314059,0.033,145.56,145.54,260.03027014]
[1741206314262,0.033,145.56,145.55,98.08749514]
[1741206314462,0.033,145.57,145.56,21.21829514]
[1741206314770,0.033,145.57,145.56,176.25717014]
[1741206315665,0.033,145.57,145.56,183.12717014]
[1741206315869,0.033,145.62,145.6,19.21829514]
[1741206316069,0.033,145.62,145.61,38.50978127]
[1741206316382,0.033,145.62,145.61,181.54719108]
[1741206316562,0.033,145.62,145.61,180.86827014]
[1741206316759,0.033,145.62,145.61,182.38907014]
[1741206317182,0.033,145.62,145.61,494.38907014]
[1741206317363,0.033,145.62,145.61,501.25667014]
[1741206318767,0.033,145.62,145.61,512.33315983]
[1741206319771,0.033,145.66,145.64,26.08449514]
[1741206319965,0.033,145.66,145.64,277.97385443]
[1741206320167,0.033,145.66,145.64,277.29605983]
[1741206321984,0.033,145.66,145.64,270.42985983]
[1741206322856,0.033,145.66,145.64,582.42985983]
[1741206323372,0.033,145.66,145.64,589.29605983]
[1741206324185,0.033,145.66,145.64,582.42985983]
[1741206324568,0.033,145.66,145.64,582.28769826]